fUSD/lending_fUSD_20260525
["ID","MTS","AMOUNT","RATE_DAILY","PERIOD"]
[422990598,1779721833000,-514.01880852,0.00011495,2]
[422990604,1779721833000,-514.01880853,0.00011495,2]
[422990602,1779721833000,-514.01880853,0.00011495,2]
[422990600,1779721833000,-514.01880853,0.00011495,2]
[422990603,1779721833000,-514.01880853,0.00011495,2]
[422990596,1779721833000,-514.01880852,0.00011495,2]
[422990594,1779721833000,-514.01880852,0.00011495,2]
[422990597,1779721833000,-514.01880852,0.00011495,2]
[422990641,1779721838000,-289.4491554,0.00011496,2]
[422990643,1779721838000,-1887.80242846,0.00011496,2]
[422990639,1779721838000,-166.66,0.00010677,2]
[422990638,1779721838000,-21255.44269876,0.00010366,2]
[422990640,1779721838000,-58577.89730121,0.00011496,2]
[422990637,1779721838000,-312.50730124,0.00010366,2]
[422990642,1779721838000,-1381.56113524,0.00011496,2]
[422990735,1779721840000,-4149.0971394,0.00011496,2]
[422990736,1779721840000,-3349.28403464,0.00011496,2]
[422990737,1779721840000,-15244.36127053,0.00011496,2]
[422990796,1779721841000,-152.0,0.00012426,7]
[422990766,1779721841000,-520.92,0.00012087,2]
[422990770,1779721841000,-169.49,0.00012087,2]
[422990782,1779721841000,-3015.53,0.00012087,2]
[422990780,1779721841000,-2131.99,0.00012087,2]
[422990811,1779721841000,-17874.0,0.00012877,2]
[422990772,1779721841000,-4999.99,0.00012087,2]
[422990776,1779721841000,-353.28,0.00012087,2]
[422990785,1779721841000,-8727.48,0.00012087,2]
[422990778,1779721841000,-2211.11,0.00012087,2]
[422990789,1779721841000,-999.99,0.00012087,2]
[422990787,1779721841000,-9999.99,0.00012087,2]
[422990790,1779721841000,-2338.06523744,0.00012174,2]
[422990792,1779721841000,-189.64,0.00012329,2]
[422990794,1779721841000,-447.92,0.00012329,2]
[422990803,1779721841000,-171.16,0.00012465,2]
[422990807,1779721841000,-160.28,0.00012707,2]
[422990798,1779721841000,-3999.26789586,0.00012434,2]
[422990809,1779721841000,-2000.0,0.00012842,2]
[422990805,1779721841000,-2338.06523744,0.00012563,2]
[422990800,1779721841000,-166.66,0.00012439,2]
[422990764,1779721841000,-1102.39,0.00012087,2]
[422990774,1779721841000,-1426.81,0.00012087,2]
[422990763,1779721841000,-499.99,0.00012087,2]
[422990742,1779721841000,-2000.0,0.00011558,2]
[422990762,1779721841000,-24999.99,0.00012087,2]
[422990738,1779721841000,-1198.20846186,0.00011496,2]
[422990739,1779721841000,-802633.21304711,0.00011496,2]
[422990740,1779721841000,-215.38528485,0.00011554,2]
[422990741,1779721841000,-160.0,0.00011554,2]
[422990743,1779721841000,-208.87966228,0.00011656,2]
[422990747,1779721841000,-25826.212676,0.00011696,2]
[422990746,1779721841000,-172.4957056,0.00011696,2]
[422990745,1779721841000,-242.9287841,0.00011696,2]
[422990744,1779721841000,-201.88278041,0.00011664,2]
[422990750,1779721841000,-1680.0,0.00011752,2]
[422990749,1779721841000,-420.0,0.00011744,2]
[422990748,1779721841000,-336.80736356,0.0001173,2]
[422990755,1779721841000,-255.0,0.00011988,2]
[422990754,1779721841000,-167.12,0.00011962,2]
[422990751,1779721841000,-500.0,0.00011769,2]
[422990752,1779721841000,-3999.26789586,0.0001194,2]
[422990753,1779721841000,-159.54,0.00011952,2]
[422990757,1779721841000,-6816.0,0.00012055,2]
[422990768,1779721841000,-55114.44,0.00012087,2]
[422990761,1779721841000,-9693.92,0.00012087,2]
[422990756,1779721841000,-500.0,0.00012043,2]
[422990760,1779721841000,-150.99,0.00012087,2]
[422990759,1779721841000,-4125.21,0.00012087,2]
[422990758,1779721841000,-9999.99,0.00012087,2]
[422990813,1779721841000,-587.0,0.0001291,2]
[422990858,1779721841000,-161.54571794,0.0001316,2]
[422990820,1779721841000,-2338.06523744,0.00012953,2]
[422990879,1779721841000,-500.0,0.0001316,2]
[422990882,1779721841000,-500.0,0.0001316,2]
[422990885,1779721841000,-425.85615515,0.0001316,2]
[422990884,1779721841000,-500.0,0.0001316,2]
[422990896,1779721841000,-3999.26789586,0.0001342,2]
[422990886,1779721841000,-1000.0,0.00013196,2]
[422990888,1779721841000,-2338.06523744,0.00013342,2]
[422990889,1779721841000,-500.0,0.00013356,2]
[422990897,1779721841000,-150.0,0.00013488,2]
[422990894,1779721841000,-315.44579433,0.000134,2]
[422990877,1779721841000,-500.0,0.0001316,2]
[422990891,1779721841000,-1200.0,0.00013356,2]
[422990895,1779721841000,-577.61138007,0.000134,2]
[422990893,1779721841000,-770.7589289,0.000134,2]
[422990892,1779721841000,-1589.0,0.000134,2]
[422990898,1779721841000,-150.0,0.00013488,2]
[422990900,1779721841000,-150.0,0.00013488,2]
[422990899,1779721841000,-150.0,0.00013488,2]
[422990901,1779721841000,-150.0,0.00013488,2]
[422990903,1779721841000,-159.54,0.00013659,2]
[422990902,1779721841000,-150.0,0.00013488,2]
[422990816,1779721841000,-3999.26789586,0.00012927,2]
[422990890,1779721841000,-600.0,0.00013356,2]
[422990871,1779721841000,-500.0,0.0001316,2]
[422990887,1779721841000,-165.31,0.00013261,2]
[422990868,1779721841000,-500.0,0.0001316,2]
[422990875,1779721841000,-500.0,0.0001316,2]
[422990818,1779721841000,-2351.0,0.00012928,2]
[422990825,1779721841000,-433.0,0.00013127,2]
[422990831,1779721841000,-500.0,0.0001316,2]
[422990829,1779721841000,-500.0,0.0001316,2]
[422990827,1779721841000,-163.5511342,0.00013155,2]
[422990833,1779721841000,-500.0,0.0001316,2]
[422990835,1779721841000,-500.0,0.0001316,2]
[422990837,1779721841000,-500.0,0.0001316,2]
[422990839,1779721841000,-500.0,0.0001316,2]
[422990842,1779721841000,-500.0,0.0001316,2]
[422990848,1779721841000,-240.0,0.0001316,2]
[422990823,1779721841000,-161.79,0.00012961,2]
[422990843,1779721841000,-353.0,0.0001316,2]
[422990850,1779721841000,-150.0,0.0001316,2]
[422990845,1779721841000,-150.0,0.0001316,2]
[422990854,1779721841000,-150.0,0.0001316,2]
[422990862,1779721841000,-500.0,0.0001316,2]
[422990860,1779721841000,-500.0,0.0001316,2]
[422990856,1779721841000,-150.0,0.0001316,2]
[422990865,1779721841000,-397.11403464,0.0001316,2]
[422990867,1779721841000,-150.0,0.0001316,2]
[422990873,1779721841000,-500.0,0.0001316,2]
[422990852,1779721841000,-150.0,0.0001316,2]
[422990928,1779721842000,-500.0,0.00013836,2]
[422990937,1779721842000,-928.0,0.00014061,2]
[422990932,1779721842000,-250.0,0.00014,2]
[422990939,1779721842000,-1224.0,0.00014061,2]
[422990940,1779721842000,-150.0,0.00014087,2]
[422990931,1779721842000,-166.66,0.00013973,2]
[422990942,1779721842000,-2338.06523744,0.00014121,2]
[422990938,1779721842000,-519.0,0.00014061,2]
[422990936,1779721842000,-3547.0,0.00014061,2]
[422990944,1779721842000,-823.0,0.00014191,2]
[422990941,1779721842000,-166.66,0.0001411,2]
[422990933,1779721842000,-300.0,0.0001406,2]
[422990951,1779721842000,-479.0,0.00014351,5]
[422990934,1779721842000,-626.0,0.00014061,2]
[422990935,1779721842000,-1355.0,0.00014061,2]
[422990956,1779721842000,-2100.0,0.000144,5]
[422990948,1779721842000,-1700.0,0.000143,5]
[422990952,1779721842000,-2316.0,0.0001436,2]
[422990945,1779721842000,-3292.0,0.0001422,2]
[422990950,1779721842000,-431.0,0.00014351,5]
[422990949,1779721842000,-540.0,0.00014351,5]
[422990955,1779721842000,-150.0,0.00014387,2]
[422990946,1779721842000,-150.0,0.00014237,2]
[422990943,1779721842000,-2000.0,0.00014126,2]
[422990926,1779721842000,-150.0,0.00013787,2]
[422990904,1779721842000,-6061.0,0.00013692,2]
[422990923,1779721842000,-163.0,0.0001372,2]
[422990954,1779721842000,-166.66,0.00014384,2]
[422990905,1779721842000,-3636.0,0.00013692,2]
[422990908,1779721842000,-500.0,0.00013698,2]
[422990906,1779721842000,-500.0,0.00013698,2]
[422990907,1779721842000,-500.0,0.00013698,2]
[422990910,1779721842000,-500.0,0.00013698,2]
[422990919,1779721842000,-500.0,0.00013698,2]
[422990920,1779721842000,-500.0,0.00013698,2]
[422990912,1779721842000,-500.0,0.00013698,2]
[422990918,1779721842000,-500.0,0.00013698,2]
[422990909,1779721842000,-500.0,0.00013698,2]
[422990911,1779721842000,-500.0,0.00013698,2]
[422990913,1779721842000,-500.0,0.00013698,2]
[422990917,1779721842000,-500.0,0.00013698,2]
[422990916,1779721842000,-500.0,0.00013698,2]
[422990915,1779721842000,-500.0,0.00013698,2]
[422990914,1779721842000,-500.0,0.00013698,2]
[422990921,1779721842000,-166.66,0.00013699,2]
[422990922,1779721842000,-200.0,0.00013699,2]
[422990924,1779721842000,-1589.0,0.0001372,2]
[422990927,1779721842000,-166.66,0.00013836,2]
[422990929,1779721842000,-642.73,0.00013903,2]
[422990925,1779721842000,-2338.06523744,0.00013732,2]
[422990930,1779721842000,-3999.26789586,0.00013913,2]
[422990953,1779721842000,-736.0,0.00014375,2]
[422990947,1779721842000,-166.66,0.00014247,2]
[422990957,1779721842000,-3999.26789586,0.00014407,2]
[422990987,1779721842000,-150.0,0.00014985,2]
[422990988,1779721842000,-150.0,0.00014986,2]
[422990989,1779721842000,-150.0,0.00014986,2]
[422990990,1779721842000,-150.0,0.00014986,2]
[422990991,1779721842000,-203.75929726,0.0001499,2]
[422990992,1779721842000,-151.0,0.00014997,2]
[422990993,1779721842000,-1176.94101003,0.00014999,5]
[422990994,1779721842000,-500.0,0.00014999,2]
[422990997,1779721842000,-500.0,0.00014999,2]
[422990995,1779721842000,-500.0,0.00014999,2]
[422990996,1779721842000,-500.0,0.00014999,2]
[422990998,1779721842000,-500.0,0.00014999,2]
[422991000,1779721842000,-500.0,0.00014999,2]
[422990999,1779721842000,-500.0,0.00014999,2]
[422991001,1779721842000,-458.17,0.00014999,2]
[422991003,1779721842000,-500.0,0.00014999,2]
[422991002,1779721842000,-500.0,0.00014999,2]
[422991004,1779721842000,-500.0,0.00014999,2]
[422991005,1779721842000,-500.0,0.00014999,2]
[422991007,1779721842000,-500.0,0.00014999,2]
[422991006,1779721842000,-500.0,0.00014999,2]
[422991010,1779721842000,-1252803.38198446,0.00015,2]
[422991008,1779721842000,-500.0,0.00014999,2]
[422990985,1779721842000,-16022.62508521,0.000149,2]
[422990984,1779721842000,-3999.26789586,0.000149,2]
[422990986,1779721842000,-150.0,0.00014924,2]
[422990982,1779721842000,-767.0,0.000149,5]
[422990958,1779721842000,-2325.704,0.00014415,2]
[422990967,1779721842000,-2120.32594975,0.000147,2]
[422990959,1779721842000,-167.777,0.00014415,2]
[422990961,1779721842000,-500.0,0.00014504,2]
[422990963,1779721842000,-400.0,0.000146,5]
[422990960,1779721842000,-400.0,0.000145,5]
[422990962,1779721842000,-2338.06523744,0.00014511,2]
[422991009,1779721842000,-500.0,0.00014999,2]
[422990964,1779721842000,-500.0,0.00014679,2]
[422990965,1779721842000,-1589.0,0.0001468,2]
[422990983,1779721842000,-262.0789949,0.000149,2]
[422990969,1779721842000,-600.0,0.00014726,2]
[422990968,1779721842000,-400.0,0.000147,5]
[422990972,1779721842000,-597.49149381,0.00014847,2]
[422990981,1779721842000,-2338.06523744,0.000149,2]
[422990980,1779721842000,-163.5511342,0.000149,2]
[422990970,1779721842000,-1200.0,0.00014726,2]
[422990977,1779721842000,-200.0,0.0001488,2]
[422990976,1779721842000,-1204.92,0.00014861,2]
[422990979,1779721842000,-3119.4148,0.000149,2]
[422990975,1779721842000,-1147.66335,0.0001485,2]
[422990974,1779721842000,-1147.66334,0.0001485,2]
[422990973,1779721842000,-1147.66334,0.0001485,2]
[422990971,1779721842000,-400.0,0.000148,5]
[422990978,1779721842000,-12031.67218127,0.000149,3]
[422990966,1779721842000,-150.0,0.00014687,2]
[422991015,1779721843000,-340459.1729759,0.00015,2]
[422991014,1779721843000,-194.55137421,0.00011454,2]
[422991016,1779721844000,-1554279.45506538,0.00015,2]
[422991112,1779721846000,-1406.85213434,0.00015,2]
[422991111,1779721846000,-1413.55063317,0.000147,2]
[422991110,1779721846000,-418.0,0.00013811,2]
[422991113,1779721846000,-194.55137419,0.00011837,2]
[422991116,1779721846000,-777.64709948,0.00015,2]
[422991114,1779721846000,-106.86173939,0.00015,2]
[422991115,1779721846000,-1199.30503039,0.00015,2]
[422991185,1779721995000,189.58,7.182e-05,2]
[422991184,1779721995000,189.58,6.856e-05,2]
[422991183,1779721995000,189.58,6.529e-05,2]
[422991182,1779721995000,189.58,6.203e-05,2]
[422991187,1779721996000,189.58,7.835e-05,2]
[422991186,1779721996000,189.58,7.509e-05,2]
[422991189,1779721996000,189.58,8.488e-05,2]
[422991190,1779721996000,189.58,8.815e-05,2]
[422991188,1779721996000,189.58,8.162e-05,2]
[422991192,1779721997000,189.58,9.467e-05,2]
[422991191,1779721997000,189.58,9.141e-05,2]
[422991193,1779721997000,189.58,9.794e-05,2]
[422991194,1779722088000,241.09,0.00027729,120]
[422991200,1779722435000,234.56,9.692e-05,2]
[422991201,1779722446000,1681.25,9.692e-05,2]
[422991209,1779722757000,155.92,4.818e-05,2]
[422991210,1779722770000,1009.01338724,0.00028,120]
[422991211,1779722780000,165.98,9.918e-05,2]
[422991212,1779722804000,304.06,9.638e-05,2]
[422991213,1779722848000,602.46,9.633e-05,2]
[422991214,1779722886000,200.0,9.631e-05,2]
[422991215,1779722937000,438.35,9.638e-05,2]
[422991216,1779722941000,1000.0,0.0002808,120]
[422991217,1779722963000,-379.60067166,0.00010027,2]
[422991241,1779723034000,-11991.69749352,0.00010453,2]
[422991240,1779723034000,-271.30250648,0.00010453,2]
[422991243,1779723034000,-150.0,0.00010469,2]
[422991244,1779723034000,-14409.0,0.0001047,2]
[422991245,1779723034000,-4125.21,0.00010475,2]
[422991247,1779723034000,-169.49,0.00010475,2]
[422991249,1779723034000,-1196.88,0.00010475,2]
[422991248,1779723034000,-1102.39,0.00010475,2]
[422991255,1779723034000,-9999.99,0.00010475,2]
[422991238,1779723034000,-300.0,0.00010452,2]
[422991250,1779723034000,-2211.11,0.00010475,2]
[422991256,1779723034000,-3745.64,0.00010475,2]
[422991257,1779723034000,-999.99,0.00010475,2]
[422991258,1779723034000,-55114.44,0.00010475,2]
[422991239,1779723034000,-178.95200143,0.00010453,2]
[422991226,1779723034000,-250.0,0.00010069,2]
[422991237,1779723034000,-300.0,0.00010452,2]
[422991251,1779723034000,-24999.99,0.00010475,2]
[422991225,1779723034000,-250.0,0.00010038,2]
[422991224,1779723034000,-1938.45932834,0.00010027,2]
[422991227,1779723034000,-161.83,0.0001007,2]
[422991229,1779723034000,-150.0,0.00010127,2]
[422991228,1779723034000,-189.58,0.0001012,2]
[422991242,1779723034000,-502.0,0.00010465,2]
[422991232,1779723034000,-150.0,0.00010327,2]
[422991231,1779723034000,-2318.06,0.00010278,2]
[422991230,1779723034000,-150.0,0.00010227,2]
[422991233,1779723034000,-150.0,0.00010427,2]
[422991235,1779723034000,-600.0,0.00010452,2]
[422991236,1779723034000,-1200.0,0.00010452,2]
[422991246,1779723034000,-8727.48,0.00010475,2]
[422991234,1779723034000,-189.58,0.00010447,2]
[422991254,1779723034000,-150.99,0.00010475,2]
[422991259,1779723034000,-353.28,0.00010475,2]
[422991253,1779723034000,-1426.81,0.00010475,2]
[422991278,1779723034000,-150.0,0.00010728,2]
[422991276,1779723034000,-400.0,0.000107,3]
[422991286,1779723034000,-1176.94101003,0.00010839,3]
[422991281,1779723034000,-189.58,0.00010773,2]
[422991279,1779723034000,-4173.0173,0.0001074,2]
[422991275,1779723034000,-10085.18769923,0.000107,2]
[422991277,1779723034000,-1454.36077337,0.00010719,2]
[422991282,1779723034000,-2318.06,0.00010779,2]
[422991287,1779723034000,-215.38528485,0.00010888,2]
[422991289,1779723034000,-500.0,0.000109,2]
[422991291,1779723034000,-234.56,0.00010903,2]
[422991290,1779723034000,-1300.0,0.000109,3]
[422991293,1779723034000,-150.0,0.00010959,2]
[422991252,1779723034000,-3015.53,0.00010475,2]
[422991288,1779723034000,-160.0,0.00010888,2]
[422991284,1779723034000,-24690.0,0.00010822,2]
[422991292,1779723034000,-1681.25,0.00010903,2]
[422991272,1779723034000,-150.0,0.00010628,2]
[422991260,1779723034000,-2131.99,0.00010475,2]
[422991280,1779723034000,-197.72717824,0.00010745,2]
[422991294,1779723034000,-2318.06,0.0001103,2]
[422991262,1779723034000,-4999.99,0.00010475,2]
[422991261,1779723034000,-9693.92,0.00010475,2]
[422991263,1779723034000,-499.99,0.00010475,2]
[422991267,1779723034000,-4152.0,0.00010484,2]
[422991270,1779723034000,-2318.06,0.00010529,2]
[422991265,1779723034000,-9999.99,0.00010475,2]
[422991264,1779723034000,-9999.99,0.00010475,2]
[422991269,1779723034000,-150.0,0.00010528,2]
[422991268,1779723034000,-2595.0,0.00010497,2]
[422991283,1779723034000,-800.0,0.000108,3]
[422991285,1779723034000,-271.0,0.00010829,2]
[422991266,1779723034000,-1000.0,0.00010477,2]
[422991337,1779723035000,-500.0,0.00012999,2]
[422991336,1779723035000,-500.0,0.00012999,2]
[422991345,1779723035000,-500.0,0.00012999,2]
[422991335,1779723035000,-500.0,0.00012999,2]
[422991328,1779723035000,-2787.13200335,0.00012834,2]
[422991329,1779723035000,-500.0,0.00012999,2]
[422991333,1779723035000,-500.0,0.00012999,2]
[422991323,1779723035000,-161.83,0.00012588,2]
[422991326,1779723035000,-2351.0,0.00012647,2]
[422991346,1779723035000,-499.37145761,0.00012999,2]
[422991331,1779723035000,-500.0,0.00012999,2]
[422991327,1779723035000,-197.72717822,0.00012823,2]
[422991334,1779723035000,-500.0,0.00012999,2]
[422991347,1779723035000,-500.0,0.00012999,2]
[422991338,1779723035000,-500.0,0.00012999,2]
[422991339,1779723035000,-500.0,0.00012999,2]
[422991341,1779723035000,-500.0,0.00012999,2]
[422991340,1779723035000,-500.0,0.00012999,2]
[422991344,1779723035000,-500.0,0.00012999,2]
[422991348,1779723035000,-500.0,0.00012999,2]
[422991349,1779723035000,-500.0,0.00012999,2]
[422991351,1779723035000,-500.0,0.00012999,2]
[422991352,1779723035000,-5678.80119499,0.00013,2]
[422991350,1779723035000,-500.0,0.00012999,2]
[422991358,1779723035000,-150.0,0.0001316,2]
[422991357,1779723035000,-500.0,0.0001316,2]
[422991325,1779723035000,-587.0,0.00012635,2]
[422991342,1779723035000,-500.0,0.00012999,2]
[422991332,1779723035000,-500.0,0.00012999,2]
[422991310,1779723035000,-577.61138007,0.00011988,2]
[422991324,1779723035000,-433.0,0.00012626,2]
[422991295,1779723035000,-250.0,0.0001103,2]
[422991296,1779723035000,-189.58,0.000111,2]
[422991308,1779723035000,-189.58,0.00011753,2]
[422991297,1779723035000,-500.0,0.00011174,2]
[422991299,1779723035000,-300.0,0.0001128,2]
[422991298,1779723035000,-2787.13200335,0.00011181,2]
[422991305,1779723035000,-1680.0,0.00011497,2]
[422991302,1779723035000,-189.58,0.00011426,2]
[422991300,1779723035000,-300.0,0.0001128,2]
[422991303,1779723035000,-420.0,0.00011492,2]
[422991301,1779723035000,-666.0,0.0001128,2]
[422991304,1779723035000,-255.0,0.00011495,2]
[422991307,1779723035000,-2787.13200335,0.00011594,2]
[422991330,1779723035000,-500.0,0.00012999,2]
[422991306,1779723035000,-165.98,0.00011555,2]
[422991320,1779723035000,-189.58,0.00012406,2]
[422991309,1779723035000,-24119.0,0.00011927,2]
[422991311,1779723035000,-315.44579433,0.00011988,2]
[422991312,1779723035000,-770.7589289,0.00011988,2]
[422991313,1779723035000,-2787.13200335,0.00012007,2]
[422991314,1779723035000,-361.43,0.00012055,2]
[422991316,1779723035000,-234.56,0.00012115,2]
[422991315,1779723035000,-189.58,0.00012079,2]
[422991317,1779723035000,-1681.25,0.00012115,2]
[422991318,1779723035000,-511.13,0.00012329,2]
[422991319,1779723035000,-152.0,0.00012402,7]
[422991321,1779723035000,-2787.13200335,0.00012421,2]
[422991322,1779723035000,-152.0,0.00012427,7]
[422991353,1779723035000,-500.0,0.0001316,2]
[422991354,1779723035000,-500.0,0.0001316,2]
[422991343,1779723035000,-500.0,0.00012999,2]
[422991355,1779723035000,-500.0,0.0001316,2]
[422991391,1779723035000,-700.0,0.00013356,2]
[422991389,1779723035000,-500.0,0.00013356,2]
[422991396,1779723035000,-661.38170655,0.00013439,2]
[422991394,1779723035000,-2316.0,0.000134,2]
[422991393,1779723035000,-2316.0,0.000134,2]
[422991395,1779723035000,-2316.0,0.000134,2]
[422991392,1779723035000,-163.0,0.000134,2]
[422991397,1779723035000,-602.46,0.00013486,2]
[422991401,1779723035000,-150.0,0.00013488,2]
[422991412,1779723035000,-500.0,0.00013698,2]
[422991411,1779723035000,-500.0,0.00013698,2]
[422991400,1779723035000,-150.0,0.00013488,2]
[422991404,1779723035000,-372.93,0.00013574,2]
[422991398,1779723035000,-150.0,0.00013488,2]
[422991407,1779723035000,-869.3,0.0001362,2]
[422991408,1779723035000,-608.51,0.0001362,2]
[422991406,1779723035000,-261.05,0.00013574,2]
[422991402,1779723035000,-150.0,0.00013488,2]
[422991405,1779723035000,-425.96,0.00013574,2]
[422991410,1779723035000,-2787.13200335,0.0001366,2]
[422991409,1779723035000,-661.38170655,0.00013621,2]
[422991414,1779723035000,-500.0,0.00013698,2]
[422991413,1779723035000,-500.0,0.00013698,2]
[422991417,1779723035000,-500.0,0.00013698,2]
[422991416,1779723035000,-500.0,0.00013698,2]
[422991415,1779723035000,-500.0,0.00013698,2]
[422991359,1779723035000,-240.0,0.0001316,2]
[422991419,1779723035000,-500.0,0.00013698,2]
[422991403,1779723035000,-150.0,0.00013488,2]
[422991399,1779723035000,-150.0,0.00013488,2]
[422991418,1779723035000,-500.0,0.00013698,2]
[422991387,1779723035000,-234.56,0.00013326,2]
[422991390,1779723035000,-1300.0,0.00013356,2]
[422991360,1779723035000,-500.0,0.0001316,2]
[422991372,1779723035000,-150.0,0.0001316,2]
[422991362,1779723035000,-353.0,0.0001316,2]
[422991364,1779723035000,-150.0,0.0001316,2]
[422991373,1779723035000,-150.0,0.0001316,2]
[422991361,1779723035000,-500.0,0.0001316,2]
[422991363,1779723035000,-150.0,0.0001316,2]
[422991369,1779723035000,-500.0,0.0001316,2]
[422991368,1779723035000,-500.0,0.0001316,2]
[422991365,1779723035000,-150.0,0.0001316,2]
[422991371,1779723035000,-150.0,0.0001316,2]
[422991370,1779723035000,-397.11403464,0.0001316,2]
[422991367,1779723035000,-161.54571794,0.0001316,2]
[422991356,1779723035000,-500.0,0.0001316,2]
[422991374,1779723035000,-165.0,0.0001316,2]
[422991366,1779723035000,-150.0,0.0001316,2]
[422991383,1779723035000,-500.0,0.0001316,2]
[422991384,1779723035000,-425.85615515,0.0001316,2]
[422991380,1779723035000,-500.0,0.0001316,2]
[422991386,1779723035000,-661.38170657,0.00013256,2]
[422991379,1779723035000,-500.0,0.0001316,2]
[422991388,1779723035000,-1681.25,0.00013326,2]
[422991376,1779723035000,-500.0,0.0001316,2]
[422991385,1779723035000,-2787.13200335,0.00013247,2]
[422991381,1779723035000,-500.0,0.0001316,2]
[422991378,1779723035000,-500.0,0.0001316,2]
[422991377,1779723035000,-500.0,0.0001316,2]
[422991375,1779723035000,-150.0,0.0001316,2]
[422991382,1779723035000,-500.0,0.0001316,2]
[422991461,1779723036000,-500.0,0.00014,2]
[422991458,1779723036000,-500.0,0.00014,2]
[422991457,1779723036000,-500.0,0.00014,2]
[422991456,1779723036000,-3083.9482,0.0001399,2]
[422991462,1779723036000,-500.0,0.00014,2]
[422991452,1779723036000,-3292.0,0.00013912,2]
[422991459,1779723036000,-500.0,0.00014,2]
[422991455,1779723036000,-150.0,0.00013987,2]
[422991453,1779723036000,-166.66,0.00013973,2]
[422991460,1779723036000,-500.0,0.00014,2]
[422991454,1779723036000,-661.38170655,0.00013987,2]
[422991451,1779723036000,-1700.0,0.000139,5]
[422991475,1779723036000,-500.0,0.00014,2]
[422991474,1779723036000,-500.0,0.00014,2]
[422991469,1779723036000,-500.0,0.00014,2]
[422991467,1779723036000,-500.0,0.00014,2]
[422991465,1779723036000,-500.0,0.00014,2]
[422991468,1779723036000,-500.0,0.00014,2]
[422991471,1779723036000,-500.0,0.00014,2]
[422991470,1779723036000,-500.0,0.00014,2]
[422991466,1779723036000,-500.0,0.00014,2]
[422991463,1779723036000,-500.0,0.00014,2]
[422991473,1779723036000,-500.0,0.00014,2]
[422991472,1779723036000,-500.0,0.00014,2]
[422991476,1779723036000,-500.0,0.00014,2]
[422991448,1779723036000,-736.0,0.00013861,2]
[422991464,1779723036000,-500.0,0.00014,2]
[422991446,1779723036000,-661.38170655,0.00013804,2]
[422991436,1779723036000,-1280.29,0.00013698,2]
[422991445,1779723036000,-150.0,0.00013737,2]
[422991425,1779723036000,-500.0,0.00013698,2]
[422991424,1779723036000,-500.0,0.00013698,2]
[422991420,1779723036000,-500.0,0.00013698,2]
[422991423,1779723036000,-500.0,0.00013698,2]
[422991422,1779723036000,-500.0,0.00013698,2]
[422991421,1779723036000,-500.0,0.00013698,2]
[422991426,1779723036000,-500.0,0.00013698,2]
[422991429,1779723036000,-1280.29,0.00013698,2]
[422991428,1779723036000,-1280.29,0.00013698,2]
[422991427,1779723036000,-500.0,0.00013698,2]
[422991432,1779723036000,-1280.29,0.00013698,2]
[422991438,1779723036000,-200.0,0.00013699,2]
[422991447,1779723036000,-166.66,0.00013836,2]
[422991433,1779723036000,-1280.29,0.00013698,2]
[422991435,1779723036000,-1280.29,0.00013698,2]